Cogmind - Beta 16 @@@ ROGUE MODE // 2025.11.06 @ 00:35:26 Player: souux Result: Destroyed by G-34 Mercenary with Small Laser Performance ------------- Evolutions (0) 0 Regions Visited (1) 200 Robots Destroyed (12) 60 Value Destroyed (279) 279 Prototype IDs (0) 0 Alien Tech Used (0) 0 Bonus (0) 0 TOTAL SCORE: 539 Bonus ------- None Cogmind --------- Core Integrity 0/250 Matter 282/300 Energy 250/250 System Corruption 1% Temperature Cool (18) Movement Treading (160) Location -10/Materials Parts ------- > --- POWER (1) -------- Ion Engine > --- PROPULSION (2) --- Light Treads Light Treads > --- UTILITY (2) ------ Small Storage Unit Seismic Detector > --- WEAPON (2) ------- Light Assault Rifle > --- INVENTORY (8) ---- Light Nuclear Core Aluminum Leg Aluminum Leg Compact Wheel Compact Wheel Peak State ------------ > --- POWER ------------ Ion Engine > --- PROPULSION ------- Aluminum Leg Aluminum Leg > --- UTILITY ---------- Small Storage Unit Seismic Detector > --- WEAPON ----------- Small Laser Light Assault Rifle > --- INVENTORY -------- Ion Engine Light Treads Light Treads Compact Wheel Compact Wheel EM Pulse Gun [Rating: 7] Favorites ----------- Power Ion Engine Engine Ion Engine Propulsion Aluminum Leg Treads Light Treads Leg Aluminum Leg Utility Small Storage Unit Device Seismic Detector Storage Small Storage Unit Weapon Light Assault Rifle Energy Gun Small Laser Ballistic Gun Light Assault Rifle Build | -11 -10 ------- Run | Yrd Mat Slots Evolved . | . . Power . | . . Propulsion . | . . Utility . | . . Weapon . | . . Parts Attached 11 | 8 3 Power 2 | 1 1 Engine 2 | 1 1 Core . | . . Reactor . | . . Propulsion 4 | 2 2 Treads 2 | . 2 Leg 2 | 2 . Wheel . | . . Hover . | . . Flight . | . . Utility 2 | 2 . Device 1 | 1 . Storage 1 | 1 . Processor . | . . Hackware . | . . Protection . | . . Artifact . | . . Weapon 3 | 3 . Energy Gun 2 | 2 . Energy Cannon . | . . Ballistic Gun 1 | 1 . Ballistic Cannon . | . . Launcher . | . . Special Weapon . | . . Impact Weapon . | . . Slashing Weapon . | . . Piercing Weapon . | . . Special Melee Weapon . | . . Unidentified Prototypes . | . . Parts Lost 5 | . 5 Power 1 | . 1 Propulsion 2 | . 2 Utility . | . . Weapon 2 | . 2 Highest Loss Streak 2 | . 2 To Critical Strikes . | . . Average Backups 4 | 5 4 Power . | . . Propulsion 3 | 3 3 Utility . | . . Weapon . | 1 . Tool/Special . | . . Unused Backups 5 | . 5 Power 1 | . 1 Propulsion 4 | . 4 Utility . | . . Weapon . | . . Tool/Special . | . . Average Slot Usage (%) 94 | . 94 Engine 14 | . 14 Treads 17 | . 17 Leg 10 | . 10 Device 14 | . 14 Storage 14 | . 14 Energy Gun 8 | . 8 Ballistic Gun 14 | . 14 Peak Build Rating 7 | 7 7 Average Rating 5 | 4 6 On Entrance 3 | . 7 Avg Prop Armor Cover (%) . | . . Naked Turns . | . . Heaviest Build 14 | 13 14 Greatest Support 40 | 20 40 Greatest Overweight (x) 1 | 1 . Average Overweight (x) . | . . Largest Inventory Capacity 8 | 8 8 Average Capacity 7 | 7 8 Most Carried 8 | 8 6 Average Carried 5 | 6 4 Final Capacity 8 | 8 8 Final Carried 6 | 6 5 Class Distribution -------------------- 100% | Mutant Dominant Class ---------------- Mutant | -10/Materials Resources | -11 -10 ----------- Run | Yrd Mat Matter Collected 379 | 308 71 Remotely . | . . Salvage Created 463 | 146 317 Parts 31 | 16 15 Haulers Intercepted 1 | . 1 Recyclers Shooed 2 | . 2 Parts Field Recycled . | . . Retrieved Matter . | . . Parts Self-Destructed . | . . Prevented . | . . Parts Restored . | . . Kills | -11 -10 ------- Run | Yrd Mat Combat Hostiles Destroyed 6 | . 6 Guns 6 | . 6 Classes Destroyed 4 | 2 2 Tunneler 4 | 4 . Hauler 1 | . 1 Recycler 1 | 1 . Grunt 6 | . 6 Best Kill Streak 4 | 4 2 Combat Bots Only 2 | . 2 Max Kills in Single Turn 1 | 1 1 Gunslinging . | . . Exploded . | . . Melee . | . . Uniques/NPCs Destroyed . | . . Combat | -11 -10 -------- Run | Yrd Mat Hostile Shots Fired 100 | . 100 Missed 28 | . 28 Hits 72 | . 72 Projectile 72 | . 72 Critical Strikes 3 | . 3 Damage Taken 998 | . 998 Core 256 | . 256 Absorbed by Shields . | . . Core Remaining (%) 100 | 100 . Volleys Fired 83 | 18 65 Largest 2 | 2 2 Hottest 60 | 60 60 Shots Fired 142 | 36 106 Gun 142 | 36 106 Cannon . | . . Launcher . | . . Special . | . . Kinetic 82 | 18 64 Thermal 51 | 18 33 Explosive . | . . Electromagnetic 9 | . 9 Robot Hit Streak 6 | 6 6 Robot Miss Streak 4 | 3 4 Penetration Max . | . . Secondary Targets 1 | . 1 Max Gunslinging Chain 1 | . 1 Shots Hit Robots 84 | 21 63 Core Hits 29 | 7 22 Critical Kills . | . . Critical Parts Destroyed . | . . Critical Strikes . | . . Melee Attacks . | . . Impact . | . . Slashing . | . . Piercing . | . . Sneak Attacks . | . . Combat Hostiles . | . . Follow-up Attacks . | . . Damage Inflicted 827 | 203 624 Guns 827 | 203 624 Cannons . | . . Explosions . | . . Melee . | . . Ramming . | . . Kinetic 369 | 66 303 Thermal 407 | 137 270 Explosive . | . . Electromagnetic 51 | . 51 Impact . | . . Slashing . | . . Piercing . | . . Highest Corruption 1 | . 1 Average Corruption 1 | . 1 Corruption Purged . | . . Corruption Blocked . | . . Overload Shots . | . . Overflow Damage . | . . Projectiles . | . . Explosions . | . . Melee . | . . Knockbacks . | . . Impact . | . . Kinetic . | . . Secondary . | . . Self-Inflicted Damage . | . . Shots . | . . Rammed . | . . Targets Rammed . | . . Kicked . | . . Crushed . | . . Highest Temperature 444 | 40 444 Average Temperature 172 | 22 218 Received Heat Transfer 612 | . 612 Effects 5 | . 5 Shutdowns 2 | . 2 Interference 2 | . 2 Damage (minor) 1 | . 1 Siege Activations . | . . Martial Activations . | . . Shielding Activations . | . . Robots Disrupted . | . . Combat Hostiles . | . . Robots Corrupted . | . . Combat Hostiles . | . . Parts Fried . | . . Impact Corruptions . | . . Robots Melted . | . . Combat Hostiles . | . . Parts Melted 3 | 2 1 Heat Transferred 925 | 325 600 Parts Sabotaged . | . . Parts Stolen . | . . Parts Stripped . | . . Power Chain Reactions . | . . Alert | -11 -10 ------- Run | Yrd Mat Maximum Alert Level . | . . Low Security (%) 100 | 100 100 Level 1 . | . . Level 2 . | . . Level 3 . | . . Level 4 . | . . Level 5 . | . . High Security . | . . Max Security . | . . Peak Influence 50 | 10 50 Initial . | . . Average 15 | 1 23 Influence Increases 186 | 25 161 Destroy 0b10 Robot/C 120 | . 120 Destroy 0b10 Robot/NC 30 | 25 5 Destroy Leader 32 | . 32 Successful Hack 4 | . 4 Influence Decreases 175 | 25 150 Time Decay 135 | 25 110 Lost Part 40 | . 40 Squads Dispatched 2 | . 2 Investigation 1 | . 1 Extermination . | . . Reinforcement 1 | . 1 Assault . | . . Garrison . | . . Intercept . | . . Searches Triggered . | . . Construction Impeded . | . . Haulers Reinforced . | . . Active Scanning Responses . | . . Cargo Convoy Interrupts . | . . Stealth | -11 -10 --------- Run | Yrd Mat Distress Signals 2 | . 2 Communications Jammed . | . . Distress Signals . | . . Times Spotted 10 | . 10 Peak Tracking Total 4 | . 4 Tactical Retreats . | . . Traps | -11 -10 ------- Run | Yrd Mat Traps Triggered 1 | . 1 Indirectly . | . . Trap Hack Attempts . | . . Triggered . | . . Disarmed . | . . Reprogrammed . | . . Reused . | . . Traps Extracted . | . . Installed . | . . Triggered . | . . Machines | -11 -10 ---------- Run | Yrd Mat Machines Disabled . | . . Max in Single Turn . | . . Machines Repaired . | . . Machines Dismantled . | . . Machines Sabotaged . | . . Overloaded Fab Kills . | . . Hacking | -11 -10 --------- Run | Yrd Mat Machines Accessed 1 | . 1 Terminals 1 | . 1 Fabricators . | . . Repair Stations . | . . Recycling Units . | . . Scanalyzers . | . . Garrison Access . | . . Total Hacks 4 | . 4 Successful 1 | . 1 Failed 3 | . 3 Catastrophic . | . . Database Lockouts . | . . Manual 4 | . 4 Terminals 4 | . 4 Fabricators . | . . Repair Stations . | . . Recycling Units . | . . Scanalyzers . | . . Garrison Access . | . . Terminal Hacks . | . . Fabricator Hacks . | . . Repair Station Hacks . | . . Recycling Unit Hacks . | . . Scanalyzer . | . . Garrison Access Hacks . | . . Unauthorized Hacks 1 | . 1 Terminals 1 | . 1 Skim 1 | . 1 Fabricators . | . . Repair Stations . | . . Recycling Units . | . . Scanalyzers . | . . Garrison Access . | . . Data Cores Recovered . | . . Used . | . . Hacking Detections 1 | . 1 Full Trace Events 1 | . 1 Feedback Events . | . . Feedback Blocked . | . . Robot Schematics Acquired . | . . Robots Built . | . . Authchips . | . . Time . | . . Total Robot Build Rating . | . . Part Schematics Acquired . | . . Parts Built . | . . Authchips . | . . Time . | . . Total Part Build Rating . | . . Part Studies Acquired . | . . Parts Repaired . | . . Time . | . . Parts Recycled . | . . Recycled Matter . | . . Retrieved Matter . | . . Retrieved Components . | . . Parts Scanalyzed . | . . Part Schematics Acquired . | . . Parts Damaged . | . . Bothacking | -11 -10 ------------ Run | Yrd Mat Used RIF Installer . | . . Robots Hacked . | . . Non-combat . | . . Combat . | . . Robot Hacks Applied . | . . Relay Couplers Released . | . . Fabnet Peak Effective % . | . . Robots Rewired . | . . Allies Hacked . | . . Hacks Repelled . | . . Allies | -11 -10 -------- Run | Yrd Mat Total Allies . | . . Largest Group . | . . Highest-Rated Group . | . . Highest-Rated Ally . | . . Total Orders . | . . Ally Attacks . | . . Total Damage . | . . Kills . | . . Allies Corrupted . | . . Allies Melted . | . . Intel | -11 -10 ------- Run | Yrd Mat Active Infowar (turns) 102 | 1 101 Seismic 102 | 1 101 Robot Analysis Total . | . . Derelict Logs Recovered . | . . Drone Launches . | . . Drone Recoveries . | . . Exploration | -11 -10 ------------- Run | Yrd Mat Turns Passed 415 | 151 264 Spaces Moved 137 | 73 64 Core 23 | 23 . Treads 48 | . 48 Legs 66 | 50 16 Wheels . | . . Hover . | . . Flight . | . . Fastest Speed 50 | 50 120 Average Speed 126 | 106 150 Slowest Speed 160 | 120 160 Overloaded Moves . | . . Propulsion Burnouts . | . . Robots Hopped . | . . Potential Cave-ins . | . . Cave-ins Triggered . | . . Exploration Rate (%) 15 | 6 25 Regions Visited 1 Branch Regions . Pre-discovered Areas . | . . Known Exits Taken . | . . Unknown Exits Taken 1 | 1 . Scrap Searched . | . . Spaces Dug . | . . Terrain Destroyed . | . . Melee . | . . Projectile . | . . AOE . | . . Terrain Rammed . | . . Walls Destroyed . | . . Machines Disabled . | . . Actions | -11 -10 --------- Run | Yrd Mat Total 251 | 112 139 Wait 4 | 2 2 Move 136 | 72 64 Hop . | . . Pick Up 14 | 11 3 Fast Attach 2 | 2 . Attach 9 | 5 4 Detach . | . . Swap 3 | 2 1 Drop . | . . Fire 83 | 18 65 Melee . | . . Ram . | . . Kick . | . . Crush . | . . Escape Stasis . | . . Rewire . | . . Trap . | . . Miscellaneous . | . . Route ------- -11/Scrapyard -10/Materials History --------- Turn | Location | Event 5 | -11/Scrapyard | Discovered new exit (range 15) 152 | -11/Scrapyard | Entered Materials 263 | -10/Materials | Core integrity fell below 50% 313 | -10/Materials | Core integrity fell below 20% 326 | -10/Materials | Build established: Mutant 416 | -10/Materials | Destroyed by G-34 Mercenary with Small Laser Last Messages --------------- Terminal linked with 0 systems. Please expand to 4 more systems! 00369_ ALERT: Suspicious activity at Terminal M001. Dispatching Investigation squad. 00369_ U-05 Engineer works on Matter Filter. 00371_ K-01 Serf collects debris. 00373_ U-05 Engineer works on Matter Filter. 00375_ K-01 Serf collects debris. 00376_ U-05 Engineer works on Matter Filter. 00376_ K-01 Serf collects debris. 00381_ U-05 Engineer works on Matter Filter. 00385_ A-02 Transporter destroyed. 00386_ U-05 Engineer works on Matter Filter. 00387_ K-01 Serf collects debris. 00390_ U-05 Engineer works on Matter Filter. 00392_ K-01 Serf collects debris. 00398_ R-06 Scavenger collects Transport Network Coupler. 00402_ R-06 Scavenger collects Mining Claw. Map ----- +----------------------------------------------------+ | ?????????????????????????????????????????????? ?? | | ?????????????????????????????????????????????# #? | | ?????????????????????????????????????????????# #? | | ?????????????????????????????????????????????# #? | | ?????????????????????????????????????????????# #? | | ?????????????????????????????????????????????# #? | | ?????????????????????????????????????????????# #? | | ????????????????????????????????????????????? #? | | ??????????????????????????????? ????????????# #? | | ??????????????????????????????" ##########??# #? | | ??????????????????????? ??" # #??# #? | | ??????????????????????# """ # #### +? | | ??????????????????????# # + #? | | ??????????????????????# # #### #? | | ??????????????????????# """ # #??#*%## | | ??????????????????????# """ + #??#^! | | ?????????????#???###### """ # #??#=^ | | ????????????? """ # #??#"" | | ???????????? "T" # #??#"T | | ???????????? """ ##+##########"" | | ???????????? """ #???# | | ????????????# """ ##### | | ?????????????# | | ?????????????# !* ggg % ##### | | ?????????????# / T | #???? | | ?????????????# %// @ #???? | | ?????????????????############# ##### | | ?????????????????????????????# | | ?????????????????????????????# | | ?????????????????????????????/ | | ?????????????????????????????# | | ?????????????????????????????# % | | ?????????????????????????????# """""" ###### | | ?????????????????????????????# """""" #????? | | ?????????????????????????????# """" #????? | | ?????????????????????????????# "" +????? | | ?????????????????????????????# "" #????? | | ????????????????????????????? #????? | | ?????????????????????????????? #????? | | ?????????????????????????????? ############????? | | ?????????????????????????????????????????????????? | | ?????????????????????????????????????????????????? | | ?????????????????????????????????????????????????? | | ?????????????????????????????????????????????????? | | ?????????????????????????????????????????????????? | | ?????????????????????????????????????????????????? | | ?????????????????????????????????????????????????? | | ?????????????????????????????????????????????????? | | ?????????????????????????????????????????????????? | | ?????????????????????????????????????????????????? | +----------------------------------------------------+ Best States ------------- Heat Dissipation 25 Energy Generation 10 Energy Capacity 250 Matter Stores 300 Matter Capacity 300 Sight Range 16 Terrain Scan Density 10 Evasion (%) 55 Recoil Reduction 2 Item Schematics ----------------- None Robot Schematics ------------------ None Fabricated ------------ Nothing Repaired ---------- Nothing Studied --------- None Alien Tech Used ----------------- None Achievements -------------- None Challenges ------------ None Game ------ Seed NodeControlSword Manual? 0 Play Time 00:06:34 Cumulative 73.4 hours Start 2025.11.06 @ 00:28:40 End 2025.11.06 @ 00:35:26 Sessions 1 Manual Loads 0 Difficulty Rogue Special Mode None Game No. 63 Rogue 63 Adventurer 0 Explorer 0 Win Type - Total 0 Types 0/0/0/0/0/0/0/0/0/0 Lore% 26 Gallery% 39 Achievement% 29 Wizard Run 0 Options --------- Layout 2 ASCII 0 Keyboard 0 Movement Mouse Keybinds 0 Fullscreen 2 Font 24/Terminus Map View 50x44 Zoom Use 0% Tactical HUD 1 Map Filters NONE Filters NONE Steam 1 RUN: bc2e2817-a30c-47d0-9174-a5830caf6d85